Workbook

Sheet Sheet1
A1: Program | B1: 8.5.9 | C1: 8.5.15 | D1: 8.6b1 | E1: 8.6b2 | F1: 8.6.0 | G1: 8.6.1 | I1: 8.5.9 | J1: 8.5.15 | K1: 8.6b1 | L1: 8.6b2 | M1: 8.6.0 | N1: 8.6.1 | P1: 8.5.9 | Q1: 8.5.15 | R1: 8.6b1 | S1: 8.6b2 | T1: 8.6.0 | U1: 8.6.1 | W1: Norm
A2: ListConcat | B2: 1.160942 | C2: 0.409699 | D2: 1.562244 | E2: 0.540527 | F2: 0.543314 | G2: 0.47374 | I2: =1000000/B2 -> 861369.4741 | J2: =1000000/C2 -> 2440816.307 | K2: 640104.8748 | L2: 1850046.344 | M2: 1840556.29 | N2: 2110862.498 | P2: =I2/$W2 -> 0.5216965557 | Q2: =J2/$W2 -> 1.478303444 | R2: 0.3876855618 | S2: 1.120498038 | T2: 1.114750297 | U2: 1.278463805 | W2: =AVERAGE(I2:J2) -> 1651092.89
A3: Fibonacci | B3: 1.590582 | C3: 1.271018 | D3: 1.808711 | E3: 1.433993 | F3: 1.462015 | G3: 1.411393 | I3: =1000000/B3 -> 628700.6894 | J3: =1000000/C3 -> 786770.9191 | K3: =1000000/D3 -> 552879.9239 | L3: =1000000/E3 -> 697353.4738 | M3: =1000000/F3 -> 683987.5104 | N3: =1000000/G3 -> 708519.8807 | P3: =I3/$W3 -> 0.8883268102 | Q3: 1.11167319 | R3: 0.7811953565 | S3: 0.9853302174 | T3: 0.9664446906 | U3: 1.001107866 | W3: =AVERAGE(I3:J3) -> 707735.8042
A4: ListIterate | B4: 3.305888 | C4: 3.023401 | D4: 3.598058 | E4: 2.110469 | F4: 2.12324 | G4: 2.15987 | I4: 302490.5865 | J4: 330753.347 | K4: 277927.7043 | L4: 473828.3292 | M4: 470978.3162 | N4: 462990.8282 | P4: 0.9553682886 | Q4: 1.044631711 | R4: 0.8777903416 | S4: 1.496511231 | T4: 1.487509919 | U4: 1.462282712 | W4: 316621.9667
A5: ProcCall | B5: 1.150951 | C5: 0.869526 | D5: 1.458989 | E5: 1.308327 | F5: 1.303937 | G5: 1.299643 | I5: 868846.7189 | J5: 1150051.867 | K5: 685406.1271 | L5: 764334.9102 | M5: 766908.2172 | N5: 769442.0699 | P5: 0.860713584 | Q5: 1.139286416 | R5: 0.6789901502 | S5: 0.7571800935 | T5: 0.7597293122 | U5: 0.7622394459 | W5: 1009449.293
A6: LoopCB | B6: 1.697756 | C6: 1.050761 | D6: 1.84963 | E6: 1.409534 | F6: 1.458104 | G6: 1.538167 | I6: 589012.791 | J6: 951691.2029 | K6: 540648.6703 | L6: 709454.3303 | M6: 685822.1361 | N6: 650124.4663 | P6: 0.7646021473 | Q6: 1.235397853 | R6: 0.7018203009 | S6: 0.9209482589 | T6: 0.8902711214 | U6: 0.8439316948 | W6: 770351.9969
A7: EnsDispatch1 | B7: 1.690663 | C7: 1.042461 | D7: 2.019189 | E7: 1.398843 | F7: 1.429321 | G7: 0.940388 | I7: 591483.9326 | J7: 959268.5002 | K7: 495248.3398 | L7: 714876.5087 | M7: 699632.9026 | N7: 1063390.856 | P7: 0.7628347634 | Q7: 1.237165237 | R7: 0.6387200553 | S7: 0.9219737381 | T7: 0.9023141126 | U7: 1.371451475 | W7: 775376.2164
A8: EnsDispatch2 | B8: 1.018901 | C8: 0.487538 | D8: 1.411733 | E8: 0.966958 | F8: 0.340577 | G8: 0.376333 | I8: 981449.6207 | J8: 2051122.169 | K8: 708349.2417 | L8: 1034171.081 | M8: 2936193.577 | N8: 2657221.131 | P8: 0.6472721431 | Q8: 1.352727857 | R8: 0.4671607407 | S8: 0.6820422747 | T8: 1.936437968 | U8: 1.752453901 | W8: 1516285.895
A9: EnsDispatch3 | B9: 1.93807 | C9: 0.513342 | D9: 1.558703 | E9: 1.239049 | F9: 1.258481 | G9: 1.190927 | I9: 515977.2351 | J9: 1948019.059 | K9: 641559.0398 | L9: 807070.584 | M9: 794608.7386 | N9: 839682.0292 | P9: 0.4188133206 | Q9: 1.581186679 | R9: 0.520746757 | S9: 0.6550907449 | T9: 0.6449755955 | U9: 0.6815611136 | W9: 1231998.147
A10: EnsDispatch4 | B10: 0.923976 | C10: 0.436915 | D10: 1.279921 | E10: 0.792774 | F10: 0.792493 | G10: 0.816708 | I10: 1082279.193 | J10: 2288774.704 | K10: 781298.2207 | L10: 1261393.537 | M10: 1261840.799 | N10: 1224427.825 | P10: 0.642101388 | Q10: 1.357898612 | R10: 0.4635335088 | S10: 0.7483674693 | T10: 0.7486328233 | U10: 0.7264362196 | W10: 1685526.949
A11: DictWith | B11: 3.753358 | C11: 2.567054 | D11: 4.198718 | E11: 1.946076 | F11: 1.292646 | G11: 1.35141 | I11: 266428.0892 | J11: 389551.6027 | K11: 238167.936 | L11: 513854.5463 | M11: 773607.0045 | N11: 739967.8854 | P11: 0.8123059066 | Q11: 1.187694093 | R11: 0.7261442357 | S11: =L11/$W11 -> 1.566678215 | T11: =M11/$W11 -> 2.358630958 | U11: =N11/$W11 -> 2.256069493 | W11: 327989.846
A12: TryNormal | D12: 27.213679 | E12: 1.411008 | F12: 1.407547 | G12: 0.508626 | K12: 36746.22604 | L12: 708713.2036 | M12: 710455.8498 | N12: 1966081.168 | R12: 0.09858678979 | S12: 1.90141321 | T12: 1.906088572 | U12: 5.274817353 | W12: =AVERAGE(K12:L12) -> 372729.7148
A13: TryError | D13: 39.174947 | E13: 3.848282 | F13: 3.855556 | G13: 3.941272 | K13: 25526.51826 | L13: 259856.2164 | M13: 259365.9643 | N13: 253725.1933 | R13: 0.1788932207 | S13: 1.821106779 | T13: 1.817671028 | U13: 1.778139758 | W13: =AVERAGE(K13:L13) -> 142691.3673
A14: TryNested | D14: 58.810915 | E14: 7.67933 | F14: 7.64541 | G14: 11.962028 | K14: 17003.64635 | L14: 130219.6936 | M14: 130797.4327 | N14: 83597.86484 | R14: 0.2309911777 | S14: 1.769008822 | T14: 1.776857293 | U14: 1.135660485 | W14: 73611.67
A15: TryNestedOver | D15: 40.356049 | E15: 4.135917 | F15: 4.196326 | G15: 4.309325 | K15: 24779.43269 | L15: 241784.3492 | M15: 238303.6971 | N15: 232054.9042 | R15: 0.1859174755 | S15: 1.814082524 | T15: 1.787967558 | U15: 1.741083523 | W15: 133281.8909

Sheet Sheet2
A1: Program | B1: 8.5.9 | C1: 8.5.15 | D1: 8.6b1 | E1: 8.6b2 | F1: 8.6.0 | G1: 8.6.1
A2: ListConcat | B2: 1.160942 | C2: 0.409699 | D2: 1.562244 | E2: 0.540527 | F2: 0.543314 | G2: 0.47374
A3: Fibonacci | B3: 1.590582 | C3: 1.271018 | D3: 1.808711 | E3: 1.433993 | F3: 1.462015 | G3: 1.411393
A4: ListIterate | B4: 3.305888 | C4: 3.023401 | D4: 3.598058 | E4: 2.110469 | F4: 2.12324 | G4: 2.15987
A5: ProcCall | B5: 1.150951 | C5: 0.869526 | D5: 1.458989 | E5: 1.308327 | F5: 1.303937 | G5: 1.299643
A6: LoopCB | B6: 1.697756 | C6: 1.050761 | D6: 1.84963 | E6: 1.409534 | F6: 1.458104 | G6: 1.538167
A7: EnsDispatch1 | B7: 1.690663 | C7: 1.042461 | D7: 2.019189 | E7: 1.398843 | F7: 1.429321 | G7: 0.940388
A8: EnsDispatch2 | B8: 1.018901 | C8: 0.487538 | D8: 1.411733 | E8: 0.966958 | F8: 0.340577 | G8: 0.376333
A9: EnsDispatch3 | B9: 1.93807 | C9: 0.513342 | D9: 1.558703 | E9: 1.239049 | F9: 1.258481 | G9: 1.190927
A10: EnsDispatch4 | B10: 0.923976 | C10: 0.436915 | D10: 1.279921 | E10: 0.792774 | F10: 0.792493 | G10: 0.816708
A11: DictWith | B11: 3.753358 | C11: 2.567054 | D11: 4.198718 | E11: 1.946076 | F11: 1.292646 | G11: 1.35141
A12: TryNormal | B12: N/A | C12: N/A | D12: 27.213679 | E12: 1.411008 | F12: 1.407547 | G12: 0.508626
A13: TryError | B13: N/A | C13: N/A | D13: 39.174947 | E13: 3.848282 | F13: 3.855556 | G13: 3.941272
A14: TryNested | B14: N/A | C14: N/A | D14: 58.810915 | E14: 7.67933 | F14: 7.64541 | G14: 11.962028
A15: TryNestedOver | B15: N/A | C15: N/A | D15: 40.356049 | E15: 4.135917 | F15: 4.196326 | G15: 4.309325
